[Event "2nd Father Cup Blitz 2023"]
[Site "Rasht"]
[Date "2023.12.07"]
[Round "1.1"]
[White "Mardali, Yousef"]
[Black "Maghsoodloo, Parham"]
[Result "1-0"]
[ECO "B28"]
[WhiteElo "1583"]
[BlackElo "2742"]
[Annotator "TA"]
[PlyCount "59"]
[EventDate "2023.12.07"]
[EventType "swiss"]
[EventCountry "IRI"]
[SourceTitle "playchess.com"]
[Source "ChessBase"]
[SourceQuality "1"]
[TimeControl "300+2"]

{[%evp 14,59,0,0,0,-107,-117,-89,-81,-78,-75,-95,-71,-75,-56,-57,-64,-100,-90,-97,-95,-104,-107,-145,-130,-358,-106,-97,-97,-100,-102,-99,-108,-185,-170,-171,-176,-293,-229,-466,-460,-484,-475,-1385,-1374,-1301,-1319,-29993]} 1. e4 {[%emt 0:00:03]} c5 {[%emt 0:00:07]} 2. Nf3 {[%emt 0:00:02]} a6 {[%emt 0:00:12]} 3. d4 {[%emt 0:00:03]} cxd4 {[%emt 0:00:03]} 4. Nxd4 {[%emt 0:00:03]} Nf6 {[%emt 0:00:05]} 5. Nc3 {[%emt 0:00:06]} e5 {[%emt 0:00:04]} 6. Nf5 {[%emt 0:01:27]} d5 {[%emt 0:00:06]} 7. Bg5 {[%emt 0:01:07]} Bxf5 {[%emt 0:00:03]} 8. exf5 {[%emt 0:00:07]} Bb4 {[%emt 0:00:03] B28: Sicilian: 2 Nf3 a6 (O'Kelly Variation).} 9. a3 {[%emt 0:00:24]} (9. Bxf6 $11 gxf6 10. Qf3) 9... Bxc3+ $17 {[%emt 0:00:03]} 10. bxc3 {[%emt 0:00:01] [#]} Nbd7 $146 {[%emt 0:00:08] Black is better.} ({Predecessor:} 10... Qa5 11. Bd2 Ne4 12. Be2 Qc5 13. O-O Nxd2 14. Qxd2 Nd7 15. Qg5 O-O 16. Rab1 b5 {0-1 Gic,S (1716)-Brutovsky,F (1738) SVK-chT2D 1718 2017 (10.8)}) 11. c4 {[%emt 0:00:40]} d4 {[%emt 0:00:06]} 12. Be2 {[%emt 0:00:16]} Qc7 {[%emt 0:00:12]} 13. f3 {[%emt 0:00:19]} h6 {[%emt 0:00:09]} 14. Bh4 {[%emt 0:00:10]} Nb6 {[%emt 0:00:12]} 15. Qd3 {[%emt 0:00:14][%cal Of3f4]} Rc8 {[%emt 0:00:19][%cal Rb6c4]} 16. c3 {[%emt 0:00:13]} dxc3 {[%emt 0:00:03][%cal Rc7c4]} (16... Qxc4 $6 17. cxd4 Qxd4 18. Qxd4 exd4 19. Rd1 $11) 17. Qxc3 {[%emt 0:00:01]} Nfd5 {[%emt 0:00:02]} 18. Qa5 {[%emt 0:00:12]} Nf4 {[%emt 0:00:02]} (18... Nxc4 19. Qxd5 Ne3 20. Qe4 Nc2+ 21. Kf2 Nxa1 22. Rxa1 $16) 19. Bg3 $2 {[%emt 0:00:03]} (19. Bf2 $17 Nxc4 {[%mdl 64] Discovered Attack} 20. Qxc7 Rxc7 21. Bxc4 Rxc4 22. O-O) 19... Nxg2+ $2 {[%emt 0:00:15] A dynamic duo of knights.} (19... Nxc4 20. Qxc7 Rxc7 21. Bxf4 exf4 22. Kf2 $17) (19... Nxe2 $19 20. Kxe2 Qxc4+ 21. Ke1 Nd5) 20. Kf2 {[%emt 0:00:01]} Nf4 {[%emt 0:00:03] [#] Hoping for ...Nxe2.} (20... Nxc4 $2 21. Qxc7 Rxc7 22. Kxg2 $18) 21. Bxf4 {[%emt 0:00:07]} exf4 {[%emt 0:00:02]} 22. Rab1 {[%emt 0:00:02]} Nd7 $36 {[%emt 0:00:04][%mdl 2048] Black is in control.} ({Don't do} 22... Nxc4 23. Qxc7 Rxc7 24. Rhc1 $16) 23. Qd5 {[%emt 0:00:02]} (23. Qxc7 $17 {keeps fighting.} Rxc7 24. Rhd1) 23... Nc5 $19 {[%emt 0:00:10] And now ...Rd8 would win.} 24. Rhd1 {[%emt 0:00:02]} O-O {[%emt 0:00:05]} ({Weaker is} 24... Qe7 25. Qd6) 25. Qd2 {[%emt 0:00:02]} (25. Qd6 $142) 25... Rfe8 {[%emt 0:00:05]} 26. Rg1 $2 {[%emt 0:00:02]} (26. Qd6 {was necessary.}) 26... Qe5 {[%emt 0:00:04] [#] White must now prevent ...Rcd8. Black is clearly winning.} 27. Rg2 {[%emt 0:00:03]} Rcd8 {[%emt 0:00:04]} (27... Qxf5 $2 {loses.} 28. Qb2 g5 29. Kg1 $19) 28. Qc2 {[%emt 0:00:01]} (28. Qb2 $142 Qe3+ 29. Kf1) 28... Qe3+ {[%emt 0:00:08] White is weak on the dark squares} 29. Kf1 {[%emt 0:00:07]} Rd2 {[%emt 0:00:03]} 30. f6 {[%emt 0:00:00][%mdl 32768] An interesting game.   Weighted Error Value: White=0.87/Black=0.23 (precise) . Loss on time!?} 1-0

[Event "2nd Father Cup Blitz 2023"]
[Site "Rasht"]
[Date "2023.12.07"]
[Round "1.2"]
[White "Toufighi, Homayoon"]
[Black "Masoumi, Sahel"]
[Result "1-0"]
[ECO "B27"]
[WhiteElo "2368"]
[BlackElo "1931"]
[Annotator "RC"]
[PlyCount "63"]
[EventDate "2023.12.07"]
[EventType "swiss"]
[EventCountry "IRI"]
[SourceTitle "playchess.com"]
[Source "ChessBase"]
[SourceQuality "1"]
[TimeControl "300+2"]

1. e4 {[%emt 0:00:02]} c5 {[%emt 0:00:01]} 2. Nf3 {[%emt 0:00:03]} g6 {[%emt 0:00:02]} 3. c3 {[%emt 0:00:02]} Nf6 {[%emt 0:00:03]} 4. e5 {[%emt 0:00:05]} Nd5 {[%emt 0:00:01]} 5. d4 {[%emt 0:00:02]} cxd4 {[%emt 0:00:02]} 6. Qxd4 {[%emt 0:00:02]} Nc7 {[%emt 0:00:34]} 7. Bc4 {[%emt 0:00:04]} Bg7 {[%emt 0:00:28]} 8. O-O {[%emt 0:00:02]} O-O {[%emt 0:00:05]} 9. Qh4 {[%emt 0:00:09]} d5 {[%emt 0:00:55]} 10. exd6 {[%emt 0:00:01]} Qxd6 {[%emt 0:00:07]} 11. Bh6 {[%emt 0:00:03]} Bxh6 {[%emt 0:00:28]} 12. Qxh6 {[%emt 0:00:03]} Qf6 {[%emt 0:00:00]} 13. Nbd2 {[%emt 0:00:27]} Bf5 {[%emt 0:00:17]} 14. Rfe1 {[%emt 0:00:17]} Nc6 {[%emt 0:00:01]} 15. Ne4 {[%emt 0:00:29]} Bxe4 {[%emt 0:00:01]} 16. Rxe4 {[%emt 0:00:02]} e6 {[%emt 0:00:23]} 17. Rae1 {[%emt 0:00:21]} Rad8 {[%emt 0:00:17]} 18. h4 {[%emt 0:00:02]} Qg7 {[%emt 0:00:22]} 19. Qf4 {[%emt 0:00:03]} Nd5 {[%emt 0:01:33]} 20. Bxd5 {[%emt 0:00:06]} Rxd5 {[%emt 0:00:00]} 21. Qc7 {[%emt 0:00:03]} Rb5 {[%emt 0:00:00]} 22. R4e2 {[%emt 0:00:02]} h5 {[%emt 0:00:00]} 23. Ng5 {[%emt 0:00:02]} Qf6 {[%emt 0:00:00]} 24. Rd1 {[%emt 0:00:02]} Rxg5 25. hxg5 {[%emt 0:00:03]} Qxg5 {[%emt 0:00:00]} 26. Qxb7 {[%emt 0:00:03]} Ne5 {[%emt 0:00:00]} 27. Qe4 {[%emt 0:00:13]} Ng4 {[%emt 0:00:00]} 28. f3 {[%emt 0:00:04]} Nf6 {[%emt 0:00:00]} 29. Qe5 {[%emt 0:00:02]} Qh4 {[%emt 0:00:00]} 30. Rd4 {[%emt 0:00:02]} Ng4 {[%emt 0:00:05]} 31. fxg4 {[%emt 0:00:02]} hxg4 {[%emt 0:00:01]} 32. g3 {[%emt 0:00:04]} 1-0

[Event "2nd Father Cup Blitz 2023"]
[Site "Rasht"]
[Date "2023.12.07"]
[Round "1.3"]
[White "Mehrkhah, Hadi"]
[Black "Mahdavi, Reza"]
[Result "0-1"]
[ECO "E11"]
[WhiteElo "1438"]
[BlackElo "2312"]
[Annotator "RC"]
[PlyCount "54"]
[EventDate "2023.12.07"]
[EventType "swiss"]
[EventCountry "IRI"]
[SourceTitle "playchess.com"]
[Source "ChessBase"]
[SourceQuality "1"]
[TimeControl "300+2"]

1. d4 {[%emt 0:00:02]} Nf6 {[%emt 0:00:01]} 2. c4 {[%emt 0:00:02]} e6 {[%emt 0:00:01]} 3. g3 {[%emt 0:00:18]} d5 {[%emt 0:00:01]} 4. Nf3 {[%emt 0:00:04]} Bb4+ {[%emt 0:00:03]} 5. Bd2 {[%emt 0:00:02]} Be7 {[%emt 0:00:03]} 6. Bg2 {[%emt 0:00:08]} O-O {[%emt 0:00:02]} 7. O-O {[%emt 0:00:02]} Nbd7 {[%emt 0:00:01]} 8. Qc2 {[%emt 0:00:25]} c6 {[%emt 0:00:01]} 9. b3 {[%emt 0:00:11]} b6 {[%emt 0:00:06]} 10. Bf4 {[%emt 0:00:10]} h6 {[%emt 0:00:32]} 11. Rd1 {[%emt 0:00:13]} Ba6 {[%emt 0:00:08]} 12. Ne5 {[%emt 0:01:06]} Rc8 {[%emt 0:00:12]} 13. Nd2 {[%emt 0:00:13]} Nh5 {[%emt 0:00:26]} 14. Nxd7 {[%emt 0:00:20]} Qxd7 {[%emt 0:00:17]} 15. Be3 {[%emt 0:00:14]} Nf6 {[%emt 0:00:15]} 16. Nf3 {[%emt 0:00:15]} Rfd8 {[%emt 0:00:25]} 17. h3 {[%emt 0:00:04]} c5 {[%emt 0:00:08]} 18. Ne5 {[%emt 0:00:23]} Qe8 {[%emt 0:00:04]} 19. dxc5 {[%emt 0:00:12]} Bxc5 {[%emt 0:00:21]} 20. Bxc5 {[%emt 0:00:09]} Rxc5 {[%emt 0:00:01]} 21. f4 {[%emt 0:00:32]} dxc4 {[%emt 0:00:02]} 22. bxc4 {[%emt 0:00:10]} Rdc8 {[%emt 0:00:04]} 23. Qb3 {[%emt 0:00:10]} Bxc4 {[%emt 0:00:03]} 24. Nxc4 {[%emt 0:00:11]} Rxc4 {[%emt 0:00:02]} 25. Qa3 {[%emt 0:00:05]} Qa4 {[%emt 0:00:11]} 26. Qe7 {[%emt 0:00:05]} R4c7 {[%emt 0:00:06]} 27. Qd6 {[%emt 0:00:02]} Rd7 {[%emt 0:00:03]} 0-1

[Event "2nd Father Cup Blitz 2023"]
[Site "Rasht"]
[Date "2023.12.07"]
[Round "1.4"]
[White "Mousavi, Seyed Khalil"]
[Black "Darang, Mehrbod"]
[Result "1-0"]
[ECO "D02"]
[WhiteElo "2501"]
[BlackElo "1536"]
[Annotator "RC"]
[PlyCount "45"]
[EventDate "2023.12.07"]
[EventType "swiss"]
[EventCountry "IRI"]
[SourceTitle "playchess.com"]
[Source "ChessBase"]
[SourceQuality "1"]
[TimeControl "300+2"]

1. d4 {[%emt 0:00:02]} Nf6 {[%emt 0:00:01]} 2. Bf4 {[%emt 0:00:07]} g6 {[%emt 0:00:01]} 3. Nd2 {[%emt 0:00:06]} d5 {[%emt 0:00:02]} 4. e3 {[%emt 0:00:03]} Bg7 {[%emt 0:00:02]} 5. Bd3 {[%emt 0:00:11]} O-O {[%emt 0:00:06]} 6. Ngf3 {[%emt 0:00:06]} c5 {[%emt 0:00:14]} 7. dxc5 {[%emt 0:00:03]} Nc6 {[%emt 0:00:19]} 8. Ne5 {[%emt 0:00:40]} Nxe5 {[%emt 0:01:04]} 9. Bxe5 {[%emt 0:00:02]} Nd7 {[%emt 0:00:11]} 10. Bxg7 {[%emt 0:00:05]} Kxg7 {[%emt 0:00:01]} 11. b4 {[%emt 0:00:04]} a5 {[%emt 0:00:34]} 12. a3 {[%emt 0:00:12]} e5 {[%emt 0:00:17]} 13. e4 {[%emt 0:00:13]} dxe4 {[%emt 0:01:12]} 14. Nxe4 {[%emt 0:00:03]} f5 {[%emt 0:00:10]} 15. Nd6 {[%emt 0:00:02]} Qg5 {[%emt 0:00:10]} 16. O-O {[%emt 0:00:16]} Nf6 {[%emt 0:00:34]} 17. Bc4 {[%emt 0:00:25]} f4 {[%emt 0:00:21]} 18. Qf3 {[%emt 0:00:12]} Ra7 {[%emt 0:00:13]} 19. h3 {[%emt 0:00:09]} h5 {[%emt 0:00:03]} 20. Rae1 {[%emt 0:00:43]} Nd7 {[%emt 0:00:03]} 21. Nb5 {[%emt 0:00:10]} Ra8 {[%emt 0:00:02]} 22. Nc7 {[%emt 0:00:02]} Ra7 {[%emt 0:00:06]} 23. Ne6+ {[%emt 0:00:03]} 1-0

[Event "2nd Father Cup Blitz 2023"]
[Site "Rasht"]
[Date "2023.12.07"]
[Round "2.1"]
[White "Maghsoodloo, Parham"]
[Black "Gerayeli, Kiarash"]
[Result "1-0"]
[ECO "D25"]
[WhiteElo "2742"]
[BlackElo "2028"]
[Annotator "TA"]
[PlyCount "43"]
[EventDate "2023.12.07"]
[EventType "swiss"]
[EventCountry "IRI"]
[SourceTitle "playchess.com"]
[Source "ChessBase"]
[SourceQuality "1"]
[TimeControl "300+2"]

{[%evp 9,43,37,38,19,62,46,118,96,110,69,77,62,208,212,200,166,192,193,192,175,184,169,172,165,216,134,251,234,394,385,385,321,453,468,491,482]} 1. d4 {[%emt 0:00:01]} d5 {[%emt 0:00:01]} 2. c4 {[%emt 0:00:01]} dxc4 {[%emt 0:00:07]} 3. Nf3 {[%emt 0:00:06]} Nf6 {[%emt 0:00:04]} 4. e3 {[%emt 0:00:03]} b5 {[%emt 0:00:02]} 5. a4 {[%emt 0:00:01]} b4 {[%emt 0:00:01]} 6. Bxc4 {[%emt 0:00:03] D25: Queen's Gambit Accepted: 4 e3: sidelines and 4...Bg4.} Bb7 {[%emt 0:00:02]} 7. a5 $5 {[%emt 0:00:10][%mdl 4] Leaves trodden paths.} a6 {[%emt 0:00:03]} (7... Nbd7 $14) 8. Qa4+ $1 $16 {[%emt 0:00:22] [#] White is better.} Nbd7 $146 {[%emt 0:01:24][%cal Oc7c5]} ({Predecessor:} 8... Nc6 9. Ne5 Qd6 10. Nxf7 Qd7 11. Nxh8 e6 12. Nd2 O-O-O 13. Nf3 Bd6 14. Qb3 Nd5 {1-0 Grochal,J (2335)-Ghomi,P (2006) Titled Tuesday intern op 22nd Dec blitz 2020 (10)}) 9. Qxb4 {[%emt 0:00:09]} Bxf3 {[%emt 0:00:04]} 10. gxf3 $40 {[%emt 0:00:02][%cal Bg2f3,Bf3f4][%mdl 160] White is up to no good.} e5 {[%emt 0:00:53] [#] A mistake that costs the game.} (10... e6 $14 11. Qb7 c5) 11. Qb3 $1 $18 {[%emt 0:00:01]} Qe7 {[%emt 0:00:01]} 12. dxe5 {[%emt 0:00:13]} Nxe5 {[%emt 0:00:05] [#]} 13. Be2 {[%emt 0:00:03]} Qd7 {[%emt 0:00:30]} 14. f4 {[%emt 0:00:24]} Nc6 {[%emt 0:00:32]} 15. Bf3 {[%emt 0:00:04]} Rb8 {[%emt 0:00:15]} 16. Qc4 {[%emt 0:00:37][%csl LRa6,LRc6]} Bb4+ {[%emt 0:00:39]} (16... Nb4 {might work better.} 17. O-O Be7) 17. Ke2 {[%emt 0:00:14]} Na7 {[%emt 0:00:41]} (17... Nxa5 $2 18. Rxa5 O-O 19. Rxa6 $18) (17... Ne7 $16) 18. Rd1 {[%emt 0:00:10] Active counter play!} Qe7 {[%emt 0:00:01]} (18... Qc8 {was worth a try.} 19. b3 (19. Qd4 Qd7 $16) 19... O-O) 19. Qxa6 {[%emt 0:00:11]} c5 {[%emt 0:00:05]} 20. Bc6+ {[%emt 0:00:08]} Nxc6 {[%emt 0:00:04]} (20... Kf8 $142 21. Ba4 h5) 21. Qxc6+ {[%emt 0:00:01]} Kf8 {[%emt 0:00:01]} 22. a6 {[%emt 0:00:02] Weighted Error Value: White=0.19 (very precise) /Black=0.54} 1-0

[Event "2nd Father Cup Blitz 2023"]
[Site "Rasht"]
[Date "2023.12.07"]
[Round "2.2"]
[White "Khanjani, Rastin"]
[Black "Toufighi, Homayoon"]
[Result "0-1"]
[ECO "B01"]
[WhiteElo "1913"]
[BlackElo "2368"]
[Annotator "RC"]
[PlyCount "112"]
[EventDate "2023.12.07"]
[EventType "swiss"]
[EventCountry "IRI"]
[SourceTitle "playchess.com"]
[Source "ChessBase"]
[SourceQuality "1"]
[TimeControl "300+2"]

1. e4 {[%emt 0:00:02]} d5 {[%emt 0:00:02]} 2. exd5 {[%emt 0:00:04]} Qxd5 {[%emt 0:00:01]} 3. Nc3 {[%emt 0:00:01]} Qa5 {[%emt 0:00:01]} 4. d4 {[%emt 0:00:02]} Nf6 {[%emt 0:00:01]} 5. Bc4 {[%emt 0:00:03]} Nc6 {[%emt 0:00:02]} 6. h3 {[%emt 0:00:11]} Qb4 {[%emt 0:01:06]} 7. Bb5 {[%emt 0:01:00]} Bd7 {[%emt 0:00:19]} 8. Nf3 {[%emt 0:00:03]} a6 {[%emt 0:00:01]} 9. Bxc6 {[%emt 0:00:08]} Bxc6 {[%emt 0:00:02]} 10. a3 {[%emt 0:00:15]} Qd6 {[%emt 0:00:07]} 11. Be3 {[%emt 0:00:04]} e6 {[%emt 0:00:04]} 12. O-O {[%emt 0:00:20]} Be7 {[%emt 0:00:03]} 13. Ne5 {[%emt 0:00:04]} O-O {[%emt 0:00:37]} 14. Qe2 {[%emt 0:00:12]} Bd5 {[%emt 0:00:31]} 15. Bf4 {[%emt 0:00:11]} Qd8 {[%emt 0:00:03]} 16. Rad1 {[%emt 0:00:10]} Re8 {[%emt 0:00:07]} 17. Bg3 {[%emt 0:00:17]} b6 {[%emt 0:00:07]} 18. Nxd5 {[%emt 0:00:10]} Qxd5 {[%emt 0:00:02]} 19. c4 {[%emt 0:00:09]} Qb7 {[%emt 0:00:04]} 20. Rd3 {[%emt 0:00:09]} Rad8 {[%emt 0:00:02]} 21. Rfd1 {[%emt 0:00:01]} b5 {[%emt 0:00:11]} 22. Rb3 {[%emt 0:00:26]} c6 {[%emt 0:00:06]} 23. a4 {[%emt 0:00:00]} b4 {[%emt 0:00:10]} 24. Rbd3 {[%emt 0:00:07]} a5 {[%emt 0:00:08]} 25. b3 {[%emt 0:00:00]} Nd7 {[%emt 0:00:16]} 26. Qe4 {[%emt 0:00:24]} Nxe5 {[%emt 0:00:14]} 27. dxe5 {[%emt 0:00:01]} Qc8 {[%emt 0:00:06]} 28. f4 {[%emt 0:00:08]} h6 {[%emt 0:00:07]} 29. Bf2 {[%emt 0:00:01]} Rxd3 {[%emt 0:00:15]} 30. Rxd3 {[%emt 0:00:00]} Bf8 {[%emt 0:00:04]} 31. Bb6 {[%emt 0:00:05]} Qa6 {[%emt 0:00:07]} 32. Qxc6 {[%emt 0:00:09]} Rb8 {[%emt 0:00:02]} 33. Rd6 {[%emt 0:00:38]} Rc8 {[%emt 0:00:21]} 34. Qb5 {[%emt 0:00:05]} Qb7 {[%emt 0:00:01]} 35. Rd7 {[%emt 0:00:03]} Qe4 {[%emt 0:00:01]} 36. Bxa5 {[%emt 0:00:13]} Qxf4 {[%emt 0:00:03]} 37. Bxb4 {[%emt 0:00:06]} Qe3+ {[%emt 0:00:05]} 38. Kh1 {[%emt 0:00:00]} Qc1+ {[%emt 0:00:02]} 39. Kh2 {[%emt 0:00:02]} Qf4+ {[%emt 0:00:02]} 40. Kh1 {[%emt 0:00:00]} Qc1+ {[%emt 0:00:16]} 41. Kh2 {[%emt 0:00:01]} Qf4+ {[%emt 0:00:01]} 42. Kh1 {[%emt 0:00:01]} Bxb4 {[%emt 0:00:26]} 43. Qxb4 {[%emt 0:00:02]} Qxe5 {[%emt 0:00:00]} 44. a5 {[%emt 0:00:03]} Rb8 {[%emt 0:00:00]} 45. Qd6 {[%emt 0:00:10]} Qe1+ {[%emt 0:00:00]} 46. Kh2 {[%emt 0:00:00]} Rxb3 {[%emt 0:00:00]} 47. a6 {[%emt 0:00:03]} Rb1 {[%emt 0:00:00]} 48. Rd8+ {[%emt 0:00:02]} Kh7 {[%emt 0:00:00]} 49. Qd3+ {[%emt 0:00:00]} f5 {[%emt 0:00:00]} 50. Rd7 {[%emt 0:00:13]} Qg1+ {[%emt 0:00:00]} 51. Kg3 {[%emt 0:00:00]} Re1 {[%emt 0:00:00]} 52. Qd4 {[%emt 0:00:02]} Re3+ {[%emt 0:00:03]} 53. Kh4 {[%emt 0:00:02]} Qf2+ {[%emt 0:00:02]} 54. Kh5 {[%emt 0:00:01]} Qe2+ {[%emt 0:00:02]} 55. Kh4 {[%emt 0:00:03]} Re4+ {[%emt 0:00:19]} 56. g4 {[%emt 0:00:07]} Rxd4 {[%emt 0:00:00]} 0-1

[Event "2nd Father Cup Blitz 2023"]
[Site "Rasht"]
[Date "2023.12.07"]
[Round "2.3"]
[White "Mahdavi, Reza"]
[Black "Niazi, Arash"]
[Result "1-0"]
[ECO "C02"]
[WhiteElo "2312"]
[BlackElo "1889"]
[Annotator "RC"]
[PlyCount "71"]
[EventDate "2023.12.07"]
[EventType "swiss"]
[EventCountry "IRI"]
[SourceTitle "playchess.com"]
[Source "ChessBase"]
[SourceQuality "1"]
[TimeControl "300+2"]

1. e4 {[%emt 0:00:01]} e6 {[%emt 0:00:02]} 2. d4 {[%emt 0:00:01]} d5 {[%emt 0:00:01]} 3. e5 {[%emt 0:00:01]} c5 {[%emt 0:00:02]} 4. c3 {[%emt 0:00:01]} Nc6 {[%emt 0:00:01]} 5. Nf3 {[%emt 0:00:01]} Qb6 {[%emt 0:00:00]} 6. a3 {[%emt 0:00:00]} c4 {[%emt 0:00:02]} 7. Nbd2 {[%emt 0:00:02]} Na5 {[%emt 0:00:01]} 8. h4 {[%emt 0:00:02]} Bd7 {[%emt 0:00:01]} 9. Rb1 {[%emt 0:00:06]} Qc7 {[%emt 0:00:02]} 10. b4 {[%emt 0:01:00]} cxb3 {[%emt 0:00:05]} 11. Nxb3 {[%emt 0:00:02]} Ba4 {[%emt 0:00:07]} 12. Nfd2 {[%emt 0:00:01]} Qxc3 {[%emt 0:00:14]} 13. Rh3 {[%emt 0:00:08]} Qc7 {[%emt 0:00:40]} 14. Qg4 {[%emt 0:00:15]} Nxb3 {[%emt 0:00:23]} 15. Nxb3 {[%emt 0:00:02]} b6 {[%emt 0:00:53]} 16. Bd3 {[%emt 0:00:06]} Ne7 {[%emt 0:00:44]} 17. Bd2 {[%emt 0:00:14]} Nc6 {[%emt 0:00:10]} 18. h5 {[%emt 0:00:02]} O-O-O {[%emt 0:00:44]} 19. Rf3 {[%emt 0:00:13]} Bxa3 {[%emt 0:00:16]} 20. Ra1 {[%emt 0:00:15]} Bxb3 {[%emt 0:00:23]} 21. Ba6+ {[%emt 0:00:00]} Kb8 {[%emt 0:00:03]} 22. Rxb3 {[%emt 0:00:01]} Nxe5 {[%emt 0:00:09]} 23. Qd1 {[%emt 0:00:59]} Nc6 {[%emt 0:00:17]} 24. Rbxa3 {[%emt 0:00:04]} Nxd4 {[%emt 0:00:02]} 25. Rc1 {[%emt 0:00:11]} Qe5+ {[%emt 0:00:02]} 26. Kf1 {[%emt 0:00:04]} Qh2 {[%emt 0:00:03]} 27. Rh3 {[%emt 0:00:03]} Qd6 {[%emt 0:00:09]} 28. Qg4 {[%emt 0:00:05]} e5 {[%emt 0:00:14]} 29. Rhc3 {[%emt 0:00:00]} Ne6 {[%emt 0:00:07]} 30. Qa4 {[%emt 0:00:09]} d4 {[%emt 0:00:05]} 31. Rc6 {[%emt 0:00:00]} Qd7 {[%emt 0:00:00]} 32. Qb5 {[%emt 0:00:04]} f6 {[%emt 0:00:00]} 33. Rxb6+ {[%emt 0:00:08]} axb6 {[%emt 0:00:00]} 34. Qxb6+ {[%emt 0:00:01]} Ka8 {[%emt 0:00:00]} 35. Ra1 {[%emt 0:00:01]} Qa7 {[%emt 0:00:00]} 36. Bb7+ {[%emt 0:00:00]} 1-0

[Event "2nd Father Cup Blitz 2023"]
[Site "Rasht"]
[Date "2023.12.07"]
[Round "2.4"]
[White "Alizadeh, Amirmohammad"]
[Black "Mousavi, Seyed Khalil"]
[Result "0-1"]
[ECO "B45"]
[WhiteElo "2128"]
[BlackElo "2501"]
[Annotator "RC"]
[PlyCount "68"]
[EventDate "2023.12.07"]
[EventType "swiss"]
[EventCountry "IRI"]
[SourceTitle "playchess.com"]
[Source "ChessBase"]
[SourceQuality "1"]
[TimeControl "300+2"]

1. e4 {[%emt 0:00:02]} c5 {[%emt 0:00:01]} 2. Nf3 {[%emt 0:00:01]} e6 {[%emt 0:00:01]} 3. d4 {[%emt 0:00:00]} cxd4 {[%emt 0:00:01]} 4. Nxd4 {[%emt 0:00:02]} Nf6 {[%emt 0:00:02]} 5. Nc3 {[%emt 0:00:01]} Nc6 {[%emt 0:00:01]} 6. Nxc6 {[%emt 0:00:01]} bxc6 {[%emt 0:00:03]} 7. e5 {[%emt 0:00:01]} Nd5 {[%emt 0:00:03]} 8. Ne4 {[%emt 0:00:01]} Qc7 {[%emt 0:00:08]} 9. f4 {[%emt 0:00:02]} Rb8 {[%emt 0:00:08]} 10. Be2 {[%emt 0:00:32]} Qb6 {[%emt 0:00:08]} 11. Bd3 {[%emt 0:00:51]} Nb4 {[%emt 0:01:17]} 12. a3 {[%emt 0:00:41]} Nxd3+ {[%emt 0:00:05]} 13. Qxd3 {[%emt 0:00:01]} Ba6 {[%emt 0:00:17]} 14. c4 {[%emt 0:00:26]} Qb3 {[%emt 0:00:22]} 15. Qxb3 {[%emt 0:00:05]} Rxb3 {[%emt 0:00:01]} 16. Nd2 {[%emt 0:00:02]} Rd3 {[%emt 0:00:20]} 17. Ke2 {[%emt 0:00:37]} Rd4 {[%emt 0:00:36]} 18. Ke3 {[%emt 0:00:02]} c5 {[%emt 0:00:58]} 19. b3 {[%emt 0:00:20]} g5 {[%emt 0:00:01]} 20. g3 {[%emt 0:00:16]} gxf4+ {[%emt 0:00:08]} 21. gxf4 {[%emt 0:00:01]} Bh6 {[%emt 0:00:07]} 22. Rf1 {[%emt 0:00:16]} d6 {[%emt 0:00:43]} 23. Ne4 {[%emt 0:00:42]} dxe5 {[%emt 0:00:09]} 24. Nxc5 {[%emt 0:00:00]} Bc8 {[%emt 0:00:06]} 25. Nd3 {[%emt 0:00:16]} f6 {[%emt 0:00:02]} 26. Bb2 {[%emt 0:00:01]} Rd8 {[%emt 0:00:01]} 27. Ke2 {[%emt 0:00:13]} Rg8 {[%emt 0:00:01]} 28. fxe5 {[%emt 0:00:07]} Rg2+ {[%emt 0:00:04]} 29. Rf2 {[%emt 0:00:01]} Rxf2+ {[%emt 0:00:06]} 30. Nxf2 {[%emt 0:00:11]} Rd2+ {[%emt 0:00:00]} 31. Kf3 {[%emt 0:00:04]} Bb7+ {[%emt 0:00:00]} 32. Kg3 {[%emt 0:00:01]} Rxb2 {[%emt 0:00:00]} 33. Ng4 {[%emt 0:00:01]} Rxb3+ {[%emt 0:00:03]} 34. Kf2 {[%emt 0:00:02]} Bg5 {[%emt 0:00:01]} 0-1